fUSD/lending_fUSD_20250226
["ID","MTS","AMOUNT","RATE_DAILY","PERIOD"]
[354605716,1740595872934,-1331.80299311,0.00036246,2]
[354605718,1740595872944,-150.0,0.000363,30]
[354605720,1740595872953,-343.01067089,0.00036346,2]
[354605722,1740595872966,-1331.80299311,0.00036368,2]
[354605724,1740595872976,-214.26,0.00036374,2]
[354605726,1740595872986,-183.23504703,0.00036406,9]
[354605728,1740595872997,-1824.5,0.00036437,14]
[354605730,1740595873006,-1824.5,0.00036437,14]
[354605732,1740595873016,-1824.5,0.00036437,14]
[354605734,1740595873026,-1824.5,0.00036437,14]
[354605736,1740595873036,-2630.39,0.00036437,14]
[354605738,1740595873048,-2630.39,0.00036437,14]
[354605740,1740595873058,-2630.39,0.00036437,14]
[354605742,1740595873068,-150.0,0.00036437,30]
[354605744,1740595873080,-500.0,0.00036438,14]
[354605746,1740595873090,-500.0,0.00036438,14]
[354605748,1740595873100,-587.57885441,0.00036438,14]
[354605750,1740595873110,-500.0,0.00036438,2]
[354605752,1740595873119,-500.0,0.00036438,2]
[354605754,1740595873129,-500.0,0.00036438,14]
[354605755,1740595873139,-2142.0,0.00036438,14]
[354605757,1740595873149,-1232.0,0.00036438,14]
[354605758,1740595873159,-151.0,0.00036438,7]
[354605759,1740595873169,-151.0,0.00036438,7]
[354605760,1740595873178,-500.0,0.00036438,14]
[354605761,1740595873188,-672.636069,0.00036438,14]
[354605762,1740595873198,-500.0,0.00036438,14]
[354605763,1740595873208,-1501.590989,0.00036438,14]
[354605764,1740595873219,-676.71,0.00036438,14]
[354605765,1740595873229,-500.0,0.00036438,14]
[354605766,1740595873239,-870.39,0.00036438,14]
[354605767,1740595873248,-1090.2,0.00036438,14]
[354605768,1740595873258,-500.0,0.00036438,14]
[354605769,1740595873268,-1069.27,0.00036438,14]
[354605770,1740595873277,-814.89,0.00036438,14]
[354605771,1740595873287,-500.0,0.00036438,14]
[354605772,1740595873296,-500.0,0.00036438,14]
[354605773,1740595873306,-1150.39,0.00036438,14]
[354605774,1740595873316,-500.0,0.00036438,14]
[354605775,1740595873325,-500.0,0.00036438,14]
[354605776,1740595873337,-500.0,0.00036438,14]
[354605777,1740595873346,-500.0,0.00036438,14]
[354605778,1740595873355,-500.0,0.00036438,14]
[354605779,1740595873365,-701.36,0.00036438,14]
[354605781,1740595873374,-500.0,0.00036438,14]
[354605783,1740595873383,-841.82,0.00036438,14]
[354605785,1740595873392,-500.0,0.00036438,14]
[354605787,1740595873402,-500.0,0.00036438,14]
[354605789,1740595873412,-500.0,0.00036438,14]
[354605791,1740595873421,-500.0,0.00036438,14]
[354605793,1740595873431,-670.19,0.00036438,14]
[354605795,1740595873440,-500.0,0.00036438,14]
[354605797,1740595873450,-500.0,0.00036438,14]
[354605799,1740595873459,-300.0,0.00036438,14]
[354605801,1740595873468,-1844.05,0.00036438,14]
[354605803,1740595873477,-500.0,0.00036438,14]
[354605805,1740595873487,-747.92,0.00036438,14]
[354605807,1740595873496,-835.83,0.00036438,14]
[354605809,1740595873505,-1533.87,0.00036438,14]
[354605811,1740595873515,-738.6,0.00036438,14]
[354605813,1740595873524,-1414.25,0.00036438,14]
[354605815,1740595873534,-865.08,0.00036438,14]
[354605817,1740595873543,-633.98,0.00036438,14]
[354605819,1740595873552,-600.33,0.00036438,14]
[354605821,1740595873561,-500.0,0.00036438,14]
[354605823,1740595873570,-500.0,0.00036438,14]
[354605825,1740595873581,-580.36,0.00036438,14]
[354605826,1740595873590,-742.35,0.00036438,14]
[354605828,1740595873599,-500.0,0.00036438,14]
[354605830,1740595873609,-732.49,0.00036438,14]
[354605832,1740595873620,-527.1,0.00036438,14]
[354605834,1740595873629,-500.0,0.00036438,14]
[354605836,1740595873639,-500.0,0.00036438,14]
[354605838,1740595873649,-935.03,0.00036438,14]
[354605840,1740595873659,-543.41,0.00036438,14]
[354605842,1740595873668,-500.0,0.00036438,14]
[354605844,1740595873678,-500.0,0.00036438,14]
[354605846,1740595873688,-500.0,0.00036438,14]
[354605848,1740595873699,-581.31,0.00036438,14]
[354605850,1740595873709,-500.0,0.00036438,14]
[354605852,1740595873718,-689.42,0.00036438,14]
[354605854,1740595873728,-689.49,0.00036438,14]
[354605857,1740595873738,-744.35,0.00036438,14]
[354605858,1740595873747,-571.34,0.00036438,14]
[354605860,1740595873757,-696.87,0.00036438,14]
[354605862,1740595873767,-1290.39,0.00036438,14]
[354605864,1740595873777,-546.44,0.00036438,14]
[354605866,1740595873786,-500.0,0.00036438,14]
[354605868,1740595873797,-500.0,0.00036438,14]
[354605870,1740595873806,-500.0,0.00036438,14]
[354605872,1740595873816,-594.86,0.00036438,14]
[354605874,1740595873826,-635.18,0.00036438,14]
[354605876,1740595873838,-500.0,0.00036438,14]
[354605878,1740595873848,-617.43,0.00036438,14]
[354605881,1740595873858,-858.4,0.00036438,14]
[354605883,1740595873869,-154.49895975,0.00036438,14]
[354605884,1740595873879,-665.21,0.00036438,14]
[354605886,1740595873889,-500.0,0.00036438,14]
[354605888,1740595873898,-500.0,0.00036438,14]
[354605891,1740595873908,-500.0,0.00036438,14]
[354605893,1740595873918,-1850.02,0.00036438,14]
[354605894,1740595873928,-1161.63,0.00036438,14]
[354605897,1740595873939,-1036.04,0.00036438,14]
[354605898,1740595873949,-2240.29,0.00036438,14]
[354605901,1740595873960,-500.0,0.00036438,14]
[354605902,1740595873971,-500.0,0.00036438,14]
[354605904,1740595873982,-500.0,0.00036438,14]
[354605906,1740595873993,-608.93,0.00036438,14]
[354605908,1740595874003,-500.0,0.00036438,14]
[354605910,1740595874013,-2310.8,0.00036438,14]
[354605912,1740595874023,-500.0,0.00036438,14]
[354605914,1740595874034,-500.0,0.00036438,14]
[354605916,1740595874044,-500.0,0.00036438,14]
[354605918,1740595874054,-500.0,0.00036438,14]
[354605920,1740595874065,-1018.81,0.00036438,14]
[354605922,1740595874076,-500.0,0.00036438,14]
[354605924,1740595874092,-871.69,0.00036438,14]
[354605926,1740595874103,-500.0,0.00036438,14]
[354605928,1740595874113,-500.0,0.00036438,14]
[354605930,1740595874123,-500.0,0.00036438,14]
[354605932,1740595874135,-1006.27,0.00036438,14]
[354605934,1740595874146,-595.91,0.00036438,14]
[354605936,1740595874157,-1116.49,0.00036438,14]
[354605938,1740595874168,-641.45,0.00036438,14]
[354605940,1740595874179,-500.0,0.00036438,14]
[354605942,1740595874190,-500.0,0.00036438,14]
[354605944,1740595874200,-500.0,0.00036438,14]
[354605946,1740595874211,-772.83,0.00036438,14]
[354605948,1740595874222,-577.91957013,0.00036438,14]
[354605950,1740595874233,-1308.99,0.00036438,14]
[354605952,1740595874245,-935.7,0.00036438,14]
[354605954,1740595874256,-872.15,0.00036438,14]
[354605956,1740595874267,-500.0,0.00036438,14]
[354605958,1740595874277,-500.0,0.00036438,14]
[354605960,1740595874289,-649.25,0.00036438,14]
[354605962,1740595874301,-500.0,0.00036438,14]
[354605964,1740595874312,-1082.33,0.00036438,14]
[354605966,1740595874322,-513.39,0.00036438,14]
[354605968,1740595874337,-500.0,0.00036438,14]
[354605970,1740595874348,-1176.81,0.00036438,14]
[354605972,1740595874359,-1686.11,0.00036438,14]
[354605974,1740595874369,-500.0,0.00036438,14]
[354605975,1740595874380,-538.09,0.00036438,14]
[354605977,1740595874391,-547.24,0.00036438,14]
[354605979,1740595874401,-500.0,0.00036438,14]
[354605981,1740595874412,-500.0,0.00036438,14]
[354605983,1740595874421,-500.0,0.00036438,14]
[354605985,1740595874431,-500.0,0.00036438,14]
[354605987,1740595874441,-811.61,0.00036438,14]
[354605989,1740595874451,-1804.38,0.00036438,14]
[354605991,1740595874461,-969.08,0.00036438,14]
[354605993,1740595874472,-2234.9,0.00036438,14]
[354605995,1740595874482,-877.13,0.00036438,14]
[354605997,1740595874492,-582.64,0.00036438,14]
[354605999,1740595874502,-1855.35,0.00036438,14]
[354606001,1740595874512,-500.0,0.00036438,14]
[354606003,1740595874522,-500.0,0.00036438,14]
[354606005,1740595874532,-500.0,0.00036438,14]
[354606007,1740595874542,-500.0,0.00036438,14]
[354606009,1740595874552,-500.0,0.00036438,14]
[354606011,1740595874562,-500.0,0.00036438,14]
[354606013,1740595874572,-1019.59,0.00036438,14]
[354606015,1740595874585,-500.0,0.00036438,14]
[354606017,1740595874596,-2120.11,0.00036438,14]
[354606019,1740595874606,-1021.29,0.00036438,14]
[354606021,1740595874617,-1613.94,0.00036438,14]
[354606023,1740595874628,-572.27,0.00036438,14]
[354606025,1740595874639,-1105.78,0.00036438,14]
[354606027,1740595874649,-500.0,0.00036438,14]
[354606029,1740595874668,-982.48,0.00036438,14]
[354606032,1740595874687,-500.0,0.00036438,14]
[354606034,1740595874701,-2258.29,0.00036438,14]
[354606037,1740595874718,-500.0,0.00036438,14]
[354606040,1740595874736,-500.0,0.00036438,14]
[354606042,1740595874754,-500.0,0.00036438,14]
[354606044,1740595874769,-1496.14,0.00036438,14]
[354606047,1740595874782,-782.62,0.00036438,14]
[354606049,1740595874799,-1313.98,0.00036438,14]
[354606052,1740595874815,-633.15,0.00036438,14]
[354606054,1740595874832,-500.0,0.00036438,14]
[354606057,1740595874849,-1614.67,0.00036438,14]
[354606059,1740595874865,-777.94,0.00036438,14]
[354606062,1740595874881,-500.0,0.00036438,14]
[354606064,1740595874896,-1119.74,0.00036438,14]
[354606067,1740595874911,-630.05,0.00036438,14]
[354606070,1740595874927,-500.0,0.00036438,14]
[354606072,1740595874946,-500.0,0.00036438,14]
[354606074,1740595874958,-1550.01,0.00036438,14]
[354606077,1740595874973,-898.54,0.00036438,14]
[354606079,1740595874992,-500.0,0.00036438,14]
[354606081,1740595875004,-500.0,0.00036438,14]
[354606083,1740595875018,-986.29,0.00036438,14]
[354606086,1740595875033,-666.5,0.00036438,14]
[354606088,1740595875048,-500.0,0.00036438,14]
[354606091,1740595875062,-1800.45,0.00036438,14]
[354606093,1740595875075,-1038.19,0.00036438,14]
[354606095,1740595875092,-722.35,0.00036438,14]
[354606098,1740595875105,-777.79,0.00036438,14]
[354606100,1740595875117,-1016.47,0.00036438,14]
[354606102,1740595875132,-583.31,0.00036438,14]
[354606105,1740595875145,-746.65,0.00036438,14]
[354606107,1740595875161,-529.67,0.00036438,14]
[354606109,1740595875173,-500.0,0.00036438,14]
[354606112,1740595875186,-500.0,0.00036438,14]
[354606114,1740595875199,-806.05,0.00036438,14]
[354606116,1740595875213,-886.7,0.00036438,14]
[354606119,1740595875228,-820.28,0.00036438,14]
[354606121,1740595875242,-1501.14,0.00036438,14]
[354606124,1740595875261,-500.0,0.00036438,14]
[354606127,1740595875276,-921.34,0.00036438,14]
[354606129,1740595875292,-500.0,0.00036438,14]
[354606131,1740595875306,-699.59,0.00036438,14]
[354606134,1740595875320,-1003.76,0.00036438,14]
[354606136,1740595875337,-500.0,0.00036438,14]
[354606138,1740595875352,-1495.63,0.00036438,14]
[354606141,1740595875366,-500.0,0.00036438,14]
[354606143,1740595875380,-834.44,0.00036438,14]
[354606146,1740595875394,-831.3,0.00036438,14]
[354606148,1740595875408,-675.74,0.00036438,14]
[354606150,1740595875421,-431.65947401,0.00036438,14]
[354606153,1740595875435,-917.03,0.00036438,14]
[354606155,1740595875448,-551.68,0.00036438,14]
[354606158,1740595875463,-681.62,0.00036438,14]
[354606160,1740595875477,-1958.47,0.00036438,14]
[354606162,1740595875490,-1067.6,0.00036438,14]
[354606165,1740595875504,-500.0,0.00036438,14]
[354606167,1740595875519,-636.63,0.00036438,14]
[354606170,1740595875533,-1007.51,0.00036438,14]
[354606172,1740595875547,-633.48131355,0.00036438,14]
[354606174,1740595875561,-500.0,0.00036438,14]
[354606177,1740595875575,-826.67,0.00036438,14]
[354606179,1740595875593,-532.65,0.00036438,14]
[354606182,1740595875609,-500.0,0.00036438,14]
[354606184,1740595875623,-1255.98,0.00036438,14]
[354606187,1740595875638,-500.0,0.00036438,14]
[354606189,1740595875651,-1084.65,0.00036438,14]
[354606191,1740595875665,-510.04,0.00036438,14]
[354606194,1740595875679,-1101.48,0.00036438,14]
[354606196,1740595875693,-634.72,0.00036438,14]
[354606198,1740595875708,-842.79,0.00036438,14]
[354606201,1740595875723,-861.46,0.00036438,14]
[354606203,1740595875737,-500.0,0.00036438,14]
[354606206,1740595875751,-765.4,0.00036438,14]
[354606208,1740595875766,-604.9,0.00036438,14]
[354606210,1740595875780,-500.0,0.00036438,14]
[354606213,1740595875794,-1116.67,0.00036438,14]
[354606215,1740595875808,-500.0,0.00036438,14]
[354606217,1740595875821,-500.0,0.00036438,14]
[354606220,1740595875837,-1441.7,0.00036438,14]
[354606221,1740595875850,-754.28,0.00036438,14]
[354606222,1740595875864,-929.23,0.00036438,14]
[354606223,1740595875878,-1403.66,0.00036438,14]
[354606224,1740595875890,-718.11,0.00036438,14]
[354606227,1740595875903,-1217.5,0.00036438,14]
[354606229,1740595875916,-1107.15,0.00036438,14]
[354606231,1740595875929,-1834.12,0.00036438,14]
[354606234,1740595875948,-500.0,0.00036438,14]
[354606236,1740595875961,-1996.52,0.00036438,14]
[354606238,1740595875976,-902.19,0.00036438,14]
[354606241,1740595875990,-561.55,0.00036438,14]
[354606243,1740595876002,-565.94,0.00036438,14]
[354606245,1740595876016,-500.0,0.00036438,14]
[354606247,1740595876028,-500.0,0.00036438,14]
[354606250,1740595876041,-500.0,0.00036438,14]
[354606252,1740595876053,-563.43,0.00036438,14]
[354606254,1740595876066,-1467.19,0.00036438,14]
[354606257,1740595876078,-1321.18,0.00036438,14]
[354606259,1740595876091,-1902.42,0.00036438,14]
[354606261,1740595876104,-500.0,0.00036438,14]
[354606264,1740595876117,-500.0,0.00036438,14]
[354606266,1740595876130,-1140.97,0.00036438,14]
[354606268,1740595876143,-528.46,0.00036438,14]
[354606271,1740595876155,-651.71,0.00036438,14]
[354606273,1740595876168,-1073.87,0.00036438,14]
[354606275,1740595876182,-1235.9,0.00036438,14]
[354606278,1740595876196,-583.0,0.00036438,14]
[354606280,1740595876210,-642.59,0.00036438,14]
[354606282,1740595876224,-500.0,0.00036438,14]
[354606285,1740595876238,-1162.07,0.00036438,14]
[354606287,1740595876250,-1175.03,0.00036438,14]
[354606289,1740595876263,-500.0,0.00036438,14]
[354606292,1740595876275,-500.0,0.00036438,14]
[354606294,1740595876287,-1123.12,0.00036438,14]
[354606296,1740595876299,-1360.38,0.00036438,14]
[354606299,1740595876312,-990.04,0.00036438,14]
[354606301,1740595876325,-500.0,0.00036438,14]
[354606303,1740595876340,-500.0,0.00036438,14]
[354606306,1740595876353,-758.81,0.00036438,14]
[354606308,1740595876366,-743.78,0.00036438,14]
[354606310,1740595876379,-1858.11,0.00036438,14]
[354606313,1740595876392,-836.2,0.00036438,14]
[354606315,1740595876404,-552.16,0.00036438,14]
[354606317,1740595876417,-957.01,0.00036438,14]
[354606320,1740595876430,-1008.01,0.00036438,14]
[354606322,1740595876443,-1949.61,0.00036438,14]
[354606324,1740595876457,-500.0,0.00036438,14]
[354606327,1740595876471,-1466.22,0.00036438,14]
[354606329,1740595876483,-1152.19,0.00036438,14]
[354606331,1740595876493,-500.0,0.00036438,14]
[354606333,1740595876504,-2482.2,0.00036438,14]
[354606335,1740595876515,-1828.52,0.00036438,14]
[354606337,1740595876525,-500.0,0.00036438,14]
[354606339,1740595876535,-527.63,0.00036438,14]
[354606340,1740595876546,-873.77,0.00036438,14]
[354606342,1740595876556,-500.0,0.00036438,14]
[354606344,1740595876567,-1665.67,0.00036438,14]
[354606346,1740595876578,-500.0,0.00036438,14]
[354606348,1740595876592,-1934.6,0.00036438,14]
[354606350,1740595876602,-786.06,0.00036438,14]
[354606353,1740595876613,-1875.12,0.00036438,14]
[354606355,1740595876623,-1075.72,0.00036438,14]
[354606357,1740595876636,-554.85,0.00036438,14]
[354606359,1740595876646,-956.32,0.00036438,14]
[354606361,1740595876655,-1163.37,0.00036438,14]
[354606363,1740595876664,-500.0,0.00036438,14]
[354606365,1740595876674,-1037.67,0.00036438,14]
[354606367,1740595876684,-2110.11,0.00036438,14]
[354606369,1740595876693,-655.67,0.00036438,14]
[354606371,1740595876702,-500.0,0.00036438,14]
[354606373,1740595876711,-519.01,0.00036438,14]
[354606375,1740595876720,-500.0,0.00036438,14]
[354606377,1740595876729,-754.12,0.00036438,14]
[354606379,1740595876739,-500.0,0.00036438,14]
[354606381,1740595876755,-1595.01,0.00036438,14]
[354606383,1740595876767,-1351.39,0.00036438,14]
[354606385,1740595876777,-500.0,0.00036438,14]
[354606387,1740595876789,-978.64,0.00036438,14]
[354606389,1740595876800,-500.0,0.00036438,14]
[354606391,1740595876810,-883.23,0.00036438,14]
[354606393,1740595876820,-366.23967822,0.00036438,14]
[354606395,1740595876830,-544.48,0.00036438,14]
[354606397,1740595876841,-1282.93,0.00036438,14]
[354606399,1740595876850,-500.0,0.00036438,14]
[354606401,1740595876859,-1979.65,0.00036438,14]
[354606403,1740595876868,-500.0,0.00036438,14]
[354606405,1740595876877,-1465.82,0.00036438,14]
[354606407,1740595876886,-500.0,0.00036438,14]
[354606409,1740595876895,-1395.89,0.00036438,14]
[354606411,1740595876904,-854.86,0.00036438,14]
[354606413,1740595876915,-1505.0,0.00036438,14]
[354606415,1740595876925,-924.09,0.00036438,14]
[354606417,1740595876934,-711.08,0.00036438,14]
[354606419,1740595876950,-552.43,0.00036438,14]
[354606421,1740595876959,-895.76,0.00036438,14]
[354606423,1740595876969,-500.0,0.00036438,14]
[354606425,1740595876978,-500.0,0.00036438,14]
[354606427,1740595876989,-500.0,0.00036438,14]
[354606429,1740595876999,-932.59,0.00036438,14]
[354606431,1740595877008,-1558.86,0.00036438,14]
[354606433,1740595877017,-912.19,0.00036438,14]
[354606435,1740595877027,-551.46,0.00036438,14]
[354606437,1740595877037,-500.0,0.00036438,14]
[354606439,1740595877047,-3271.55,0.00036438,14]
[354606441,1740595877056,-3117.32,0.00036438,14]
[354606443,1740595877066,-500.0,0.00036438,14]
[354606445,1740595877075,-896.05,0.00036438,14]
[354606500,1740595877608,-1469.5,0.00036438,14]
[354606504,1740595877632,-500.0,0.00036438,14]
[354606507,1740595877653,-500.0,0.00036438,14]
[354606510,1740595877671,-500.0,0.00036438,14]
[354606513,1740595877691,-1970.34,0.00036438,14]
[354606516,1740595877708,-1219.67,0.00036438,14]
[354606518,1740595877718,-500.0,0.00036438,14]
[354606520,1740595877727,-500.0,0.00036438,14]
[354606522,1740595877737,-500.0,0.00036438,14]
[354606524,1740595877746,-1258.23,0.00036438,14]
[354606526,1740595877755,-802.71,0.00036438,14]
[354606528,1740595877764,-1003.98,0.00036438,14]
[354606530,1740595877774,-500.0,0.00036438,14]
[354606532,1740595877783,-1048.22,0.00036438,14]
[354606534,1740595877792,-500.0,0.00036438,14]
[354606536,1740595877801,-500.0,0.00036438,14]
[354606538,1740595877810,-500.0,0.00036438,14]
[354606540,1740595877819,-12754.69,0.00036438,14]
[354606542,1740595877828,-760.48,0.00036438,14]
[354606544,1740595877841,-1559.74,0.00036438,14]
[354606545,1740595877850,-1039.17,0.00036438,14]
[354606547,1740595877859,-500.0,0.00036438,14]
[354606549,1740595877869,-968.47,0.00036438,14]
[354606551,1740595877878,-975.3,0.00036438,14]
[354606553,1740595877887,-884.61,0.00036438,14]
[354606555,1740595877897,-581.51,0.00036438,14]
[354606557,1740595877907,-677.65,0.00036438,14]
[354606559,1740595877916,-500.0,0.00036438,14]
[354606561,1740595877925,-559.35,0.00036438,14]
[354606563,1740595877934,-500.0,0.00036438,14]
[354606565,1740595877944,-500.0,0.00036438,14]
[354606567,1740595877953,-1068.0,0.00036438,14]
[354606569,1740595877966,-500.0,0.00036438,14]
[354606571,1740595877975,-1096.63,0.00036438,14]
[354606573,1740595877984,-1472.3,0.00036438,14]
[354606575,1740595877994,-500.0,0.00036438,14]
[354606577,1740595878004,-882.85,0.00036438,14]
[354606579,1740595878014,-1708.56,0.00036438,14]
[354606581,1740595878023,-500.0,0.00036438,14]
[354606583,1740595878033,-505.62,0.00036438,14]
[354606585,1740595878043,-966.9,0.00036438,14]
[354606587,1740595878052,-1141.53,0.00036438,7]
[354606588,1740595878061,-1382.5,0.00036438,14]
[354606590,1740595878071,-811.04,0.00036438,14]
[354606592,1740595878081,-669.94,0.00036438,14]
[354606594,1740595878091,-691.77,0.00036438,14]
[354606596,1740595878103,-530.0,0.00036438,14]
[354606598,1740595878115,-1910.93,0.00036438,14]
[354606600,1740595878125,-500.0,0.00036438,14]
[354606602,1740595878135,-500.0,0.00036438,14]
[354606604,1740595878144,-874.49,0.00036438,14]
[354606606,1740595878154,-776.22,0.00036438,14]
[354606608,1740595878167,-2493.41,0.00036438,14]
[354606610,1740595878179,-811.0,0.00036438,14]
[354606612,1740595878188,-2617.36,0.00036438,14]
[354606614,1740595878200,-1621.78,0.00036438,14]
[354606616,1740595878211,-2143.28,0.00036438,14]
[354606618,1740595878221,-500.0,0.00036438,14]
[354606620,1740595878230,-500.0,0.00036438,14]
[354606622,1740595878240,-2319.53,0.00036438,14]
[354606624,1740595878249,-500.0,0.00036438,14]
[354606625,1740595878259,-500.0,0.00036438,14]
[354606627,1740595878268,-529.04,0.00036438,14]
[354606629,1740595878282,-1163.2,0.00036438,14]
[354606631,1740595878298,-1841.79,0.00036438,14]
[354606633,1740595878316,-768.45,0.00036438,14]
[354606635,1740595878326,-500.0,0.00036438,14]
[354606637,1740595878336,-500.0,0.00036438,14]
[354606639,1740595878346,-500.0,0.00036438,14]
[354606641,1740595878355,-500.0,0.00036438,14]
[354606643,1740595878364,-500.0,0.00036438,14]
[354606645,1740595878373,-911.1,0.00036438,14]
[354606647,1740595878383,-500.0,0.00036438,14]
[354606649,1740595878392,-1280.98,0.00036438,14]
[354606651,1740595878403,-2143.46,0.00036438,14]
[354606653,1740595878412,-1855.75,0.00036438,14]
[354606655,1740595878421,-500.0,0.00036438,14]
[354606657,1740595878430,-873.58,0.00036438,14]
[354606659,1740595878440,-939.46,0.00036438,14]
[354606661,1740595878449,-500.0,0.00036438,14]
[354606663,1740595878459,-500.0,0.00036438,14]
[354606665,1740595878468,-1902.32,0.00036438,14]
[354606667,1740595878478,-500.0,0.00036438,14]
[354606669,1740595878488,-1142.01,0.00036438,14]
[354606671,1740595878498,-938.37,0.00036438,14]
[354606673,1740595878508,-800.79,0.00036438,14]
[354606675,1740595878517,-2507.28,0.00036438,2]
[354606677,1740595878526,-512.47,0.00036438,14]
[354606679,1740595878536,-500.0,0.00036438,14]
[354606681,1740595878546,-1981.71,0.00036438,14]
[354606682,1740595878555,-731.9,0.00036438,14]
[354606684,1740595878565,-500.0,0.00036438,14]
[354606686,1740595878575,-1276.51,0.00036438,14]
[354606688,1740595878585,-708.24,0.00036438,14]
[354606690,1740595878595,-500.0,0.00036438,14]
[354606692,1740595878605,-2733.74,0.00036438,14]
[354606694,1740595878614,-2252.01,0.00036438,14]
[354606696,1740595878623,-1022.27,0.00036438,14]
[354606698,1740595878632,-891.14,0.00036438,14]
[354606700,1740595878642,-500.0,0.00036438,14]
[354606702,1740595878652,-500.0,0.00036438,14]
[354606704,1740595878662,-642.98,0.00036438,14]
[354606706,1740595878671,-552.36,0.00036438,14]
[354606708,1740595878681,-630.12,0.00036438,14]
[354606710,1740595878691,-500.0,0.00036438,14]
[354606712,1740595878701,-1991.31,0.00036438,14]
[354606714,1740595878711,-1294.07,0.00036438,14]
[354606716,1740595878720,-1853.21,0.00036438,14]
[354606718,1740595878730,-630.96,0.00036438,14]
[354606720,1740595878740,-1573.28,0.00036438,14]
[354606722,1740595878750,-2426.57,0.00036438,14]
[354606724,1740595878765,-2490.78,0.00036438,14]
[354606726,1740595878776,-1150.32,0.00036438,14]
[354606728,1740595878786,-715.02,0.00036438,14]
[354606730,1740595878796,-3484.94,0.00036438,14]
[354606732,1740595878806,-2771.33,0.00036438,14]
[354606734,1740595878816,-500.0,0.00036438,14]
[354606736,1740595878826,-500.0,0.00036438,14]
[354606738,1740595878840,-500.0,0.00036438,14]
[354606740,1740595878850,-1596.62,0.00036438,14]
[354606742,1740595878860,-1876.78,0.00036438,14]
[354606744,1740595878870,-1560.4,0.00036438,14]
[354606746,1740595878880,-500.0,0.00036438,14]
[354606748,1740595878889,-1676.26,0.00036438,14]
[354606750,1740595878899,-500.0,0.00036438,14]
[354606752,1740595878909,-6192.85,0.00036438,14]
[354606754,1740595878919,-647.32,0.00036438,14]
[354606755,1740595878929,-1726.29,0.00036438,14]
[354606757,1740595878940,-2725.95,0.00036438,14]
[354606759,1740595878949,-563.72,0.00036438,14]
[354606761,1740595878960,-944.42,0.00036438,14]
[354606763,1740595878970,-500.0,0.00036438,14]
[354606765,1740595878981,-3837.57,0.00036438,14]
[354606767,1740595878992,-1361.35,0.00036438,14]
[354606769,1740595879002,-1302.57,0.00036438,14]
[354606771,1740595879012,-688.53,0.00036438,14]
[354606773,1740595879021,-11693.75,0.00036438,14]
[354606775,1740595879031,-2812.52,0.00036438,14]
[354606777,1740595879042,-861.86,0.00036438,14]
[354606779,1740595879053,-3063.11,0.00036438,14]
[354606781,1740595879063,-1132.99,0.00036438,14]
[354606783,1740595879073,-500.0,0.00036438,14]
[354606785,1740595879086,-2332.02,0.00036438,14]
[354606787,1740595879096,-3032.5,0.00036438,14]